fUSD/lending_fUSD_20260519
["ID","MTS","AMOUNT","RATE_DAILY","PERIOD"]
[422617664,1779161439000,-5085.02523288,0.00021,2]
[422617669,1779161439000,-1570.4,0.00021273,2]
[422617672,1779161439000,-1502.91,0.00021273,2]
[422617673,1779161439000,-445.66982121,0.00021545,2]
[422617674,1779161439000,-401.2558515,0.00021695,2]
[422617662,1779161439000,-151.0,0.00021,2]
[422617663,1779161439000,-15000.0,0.00021,2]
[422617671,1779161439000,-1017.19,0.00021273,2]
[422617748,1779161440000,-738.0,0.00025483,10]
[422617740,1779161440000,-5811.57,0.00025055,7]
[422617742,1779161440000,-159.86,0.00025234,2]
[422617741,1779161440000,-1107.19510695,0.00025088,2]
[422617739,1779161440000,-169.82658777,0.00025,2]
[422617743,1779161440000,-159.94,0.00025234,2]
[422617746,1779161440000,-730.0,0.00025483,10]
[422617737,1779161440000,-296.0,0.00025,2]
[422617745,1779161440000,-458.3397135,0.00025397,2]
[422617738,1779161440000,-555.20562031,0.00025,2]
[422617736,1779161440000,-159.94,0.00024946,7]
[422617734,1779161440000,-1268.88,0.000247,7]
[422617747,1779161440000,-528.0,0.00025483,10]
[422617744,1779161440000,-9665.63735047,0.00025278,21]
[422617755,1779161440000,-1570.4,0.00025786,2]
[422617751,1779161440000,-1125.48,0.00025571,2]
[422617757,1779161440000,-1017.19,0.00025786,2]
[422617750,1779161440000,-159.94,0.00025523,2]
[422617758,1779161440000,-1502.91,0.00025786,2]
[422617760,1779161440000,-159.86,0.00025811,7]
[422617759,1779161440000,-160.0,0.00025811,7]
[422617761,1779161440000,-159.94,0.00025811,7]
[422617752,1779161440000,-929.0,0.000256,2]
[422617753,1779161440000,-519.0,0.000256,2]
[422617754,1779161440000,-772.0,0.000256,2]
[422617756,1779161440000,-221.36,0.00025786,2]
[422617762,1779161440000,-445.66982121,0.00025902,2]
[422617732,1779161440000,-603.98339749,0.00024658,7]
[422617749,1779161440000,-159.86,0.00025523,2]
[422617728,1779161440000,-500.0,0.00024658,7]
[422617705,1779161440000,-1224.0,0.00023578,2]
[422617727,1779161440000,-500.0,0.00024658,7]
[422617763,1779161440000,-4009.92056922,0.00025902,2]
[422617703,1779161440000,-150.294,0.00023578,2]
[422617706,1779161440000,-6057.0,0.00023578,2]
[422617710,1779161440000,-2571.78,0.0002391,2]
[422617709,1779161440000,-3996.97,0.0002391,2]
[422617704,1779161440000,-1274.931,0.00023578,2]
[422617707,1779161440000,-1354.0,0.00023578,2]
[422617708,1779161440000,-1125.48,0.00023744,2]
[422617711,1779161440000,-401.2558515,0.00023912,2]
[422617713,1779161440000,-166.31555179,0.00024,2]
[422617715,1779161440000,-536.0,0.00024,2]
[422617722,1779161440000,-500.0,0.00024508,9]
[422617718,1779161440000,-721.4,0.00024324,2]
[422617733,1779161440000,-159.94,0.00024658,2]
[422617716,1779161440000,-162.0,0.00024,2]
[422617721,1779161440000,-500.0,0.00024426,9]
[422617714,1779161440000,-500.0,0.00024,2]
[422617717,1779161440000,-6158.61408429,0.0002421,2]
[422617720,1779161440000,-4474.91678066,0.00024397,2]
[422617712,1779161440000,-288.0,0.00024,2]
[422617719,1779161440000,-4474.91678066,0.00024397,2]
[422617724,1779161440000,-1000.0,0.00024658,2]
[422617731,1779161440000,-500.0,0.00024658,7]
[422617735,1779161440000,-159.86,0.00024946,7]
[422617725,1779161440000,-498.22,0.00024658,2]
[422617729,1779161440000,-500.0,0.00024658,7]
[422617726,1779161440000,-159.86,0.00024658,2]
[422617730,1779161440000,-500.0,0.00024658,7]
[422617723,1779161440000,-319.86764912,0.0002459,9]
[422617764,1779161440000,-553.24603877,0.00025902,2]
[422617797,1779161440000,-259.53,0.000274,7]
[422617766,1779161440000,-6158.61408429,0.00026107,2]
[422617806,1779161440000,-6158.61408429,0.00028003,2]
[422617811,1779161440000,-5530.0,0.000284,5]
[422617807,1779161440000,-1587.0,0.00028044,3]
[422617802,1779161440000,-500.0,0.000278,7]
[422617812,1779161440000,-1000.0,0.00028492,21]
[422617801,1779161440000,-1000.0,0.00027796,15]
[422617803,1779161440000,-500.0,0.00027842,2]
[422617813,1779161440000,-20793.05938883,0.00028514,2]
[422617805,1779161440000,-189.59,0.00028,2]
[422617808,1779161440000,-5811.57,0.0002811,7]
[422617810,1779161440000,-401.2558515,0.00028344,2]
[422617804,1779161440000,-600.0,0.00028,2]
[422617809,1779161440000,-721.4,0.00028267,2]
[422617792,1779161440000,-35176.74,0.00027397,10]
[422617814,1779161440000,-500.0,0.00028547,3]
[422617816,1779161440000,-152.25,0.0002863,2]
[422617821,1779161440000,-246.67,0.0002863,2]
[422617822,1779161440000,-951.42,0.0002863,2]
[422617826,1779161440000,-220.49,0.00028661,7]
[422617823,1779161440000,-220.33,0.00028661,7]
[422617818,1779161440000,-949.57,0.0002863,2]
[422617825,1779161440000,-949.57,0.00028661,7]
[422617817,1779161440000,-246.55,0.0002863,2]
[422617819,1779161440000,-220.49,0.0002863,2]
[422617824,1779161440000,-246.55,0.00028661,7]
[422617828,1779161440000,-951.42,0.00028661,7]
[422617827,1779161440000,-246.67,0.00028661,7]
[422617767,1779161440000,-401.2558515,0.00026128,2]
[422617815,1779161440000,-220.33,0.0002863,2]
[422617795,1779161440000,-150.0,0.00027397,2]
[422617820,1779161440000,-152.32,0.0002863,2]
[422617790,1779161440000,-526.88,0.00027397,2]
[422617789,1779161440000,-1465.85,0.00027397,2]
[422617773,1779161440000,-1354.0,0.00026578,2]
[422617768,1779161440000,-721.4,0.00026296,2]
[422617765,1779161440000,-550.0,0.00026,2]
[422617769,1779161440000,-458.3397135,0.00026397,2]
[422617771,1779161440000,-1224.0,0.00026578,2]
[422617772,1779161440000,-5071.449,0.00026578,2]
[422617774,1779161440000,-5543.0,0.000269,2]
[422617776,1779161440000,-500.0,0.00026999,2]
[422617778,1779161440000,-164.0,0.00027,7]
[422617777,1779161440000,-45787.83,0.00027,2]
[422617780,1779161440000,-150.0,0.00027123,20]
[422617786,1779161440000,-150.0,0.00027397,2]
[422617787,1779161440000,-1500.0,0.00027397,2]
[422617770,1779161440000,-1270.0,0.00026578,2]
[422617781,1779161440000,-500.0,0.00027137,2]
[422617784,1779161440000,-1125.46049149,0.00027397,2]
[422617799,1779161440000,-5530.0,0.000276,3]
[422617800,1779161440000,-502.0,0.00027753,2]
[422617788,1779161440000,-300.0,0.00027397,2]
[422617798,1779161440000,-5962.91,0.000274,14]
[422617793,1779161440000,-498.22,0.00027397,2]
[422617794,1779161440000,-305.559809,0.00027397,7]
[422617796,1779161440000,-188.73,0.000274,7]
[422617785,1779161440000,-500.0,0.00027397,2]
[422617791,1779161440000,-42212.09,0.00027397,10]
[422617779,1779161440000,-626.0,0.000271,7]
[422617829,1779161440000,-152.25,0.00028676,7]
[422617783,1779161440000,-305.559809,0.00027397,7]
[422617782,1779161440000,-1268.88,0.000273,7]
[422617868,1779161441000,-246.55,0.0002882,2]
[422617857,1779161441000,-152.32,0.00028769,2]
[422617861,1779161441000,-220.49,0.00028788,30]
[422617864,1779161441000,-152.0,0.00028794,30]
[422617863,1779161441000,-951.42,0.00028788,30]
[422617866,1779161441000,-152.32,0.00028815,7]
[422617865,1779161441000,-152.25,0.00028815,7]
[422617869,1779161441000,-949.57,0.0002882,2]
[422617867,1779161441000,-220.33,0.0002882,2]
[422617874,1779161441000,-220.33,0.00028852,7]
[422617860,1779161441000,-949.57,0.00028788,30]
[422617858,1779161441000,-220.33,0.00028788,30]
[422617884,1779161441000,-949.57,0.00028883,30]
[422617873,1779161441000,-152.0,0.00028831,30]
[422617870,1779161441000,-220.49,0.0002882,2]
[422617872,1779161441000,-951.42,0.0002882,2]
[422617885,1779161441000,-220.49,0.00028883,30]
[422617876,1779161441000,-949.57,0.00028852,7]
[422617877,1779161441000,-220.49,0.00028852,7]
[422617882,1779161441000,-220.33,0.00028883,30]
[422617875,1779161441000,-246.55,0.00028852,7]
[422617878,1779161441000,-246.67,0.00028852,7]
[422617883,1779161441000,-246.55,0.00028883,30]
[422617862,1779161441000,-246.67,0.00028788,30]
[422617881,1779161441000,-152.32,0.00028861,30]
[422617871,1779161441000,-246.67,0.0002882,2]
[422617856,1779161441000,-152.25,0.00028769,2]
[422617848,1779161441000,-220.33,0.00028756,7]
[422617859,1779161441000,-246.55,0.00028788,30]
[422617879,1779161441000,-951.42,0.00028852,7]
[422617835,1779161441000,-246.67,0.00028693,30]
[422617837,1779161441000,-188.73,0.000287,7]
[422617830,1779161441000,-152.32,0.00028676,7]
[422617839,1779161441000,-152.25,0.00028722,30]
[422617836,1779161441000,-951.42,0.00028693,30]
[422617838,1779161441000,-259.53,0.000287,7]
[422617831,1779161441000,-220.33,0.00028693,30]
[422617832,1779161441000,-246.55,0.00028693,30]
[422617834,1779161441000,-220.49,0.00028693,30]
[422617833,1779161441000,-949.57,0.00028693,30]
[422617840,1779161441000,-152.32,0.00028722,30]
[422617845,1779161441000,-246.67,0.00028725,2]
[422617841,1779161441000,-220.33,0.00028725,2]
[422617844,1779161441000,-220.49,0.00028725,2]
[422617850,1779161441000,-949.57,0.00028756,7]
[422617849,1779161441000,-246.55,0.00028756,7]
[422617852,1779161441000,-246.67,0.00028756,7]
[422617846,1779161441000,-951.42,0.00028725,2]
[422617847,1779161441000,-152.0,0.00028751,30]
[422617842,1779161441000,-246.55,0.00028725,2]
[422617843,1779161441000,-949.57,0.00028725,2]
[422617851,1779161441000,-220.49,0.00028756,7]
[422617853,1779161441000,-951.42,0.00028756,7]
[422617854,1779161441000,-368.52553806,0.00028767,2]
[422617855,1779161441000,-150.0,0.00028767,2]
[422617880,1779161441000,-152.25,0.00028861,30]
[422617886,1779161441000,-246.67,0.00028883,30]
[422617888,1779161441000,-5962.91,0.000289,14]
[422617918,1779161441000,-246.55,0.0002901,2]
[422617920,1779161441000,-220.49,0.0002901,2]
[422617919,1779161441000,-949.57,0.0002901,2]
[422617925,1779161441000,-949.57,0.00029042,7]
[422617928,1779161441000,-951.42,0.00029042,7]
[422617926,1779161441000,-220.49,0.00029042,7]
[422617929,1779161441000,-152.25,0.00029047,2]
[422617923,1779161441000,-220.33,0.00029042,7]
[422617922,1779161441000,-951.42,0.0002901,2]
[422617921,1779161441000,-246.67,0.0002901,2]
[422617927,1779161441000,-246.67,0.00029042,7]
[422617924,1779161441000,-246.55,0.00029042,7]
[422617941,1779161441000,-246.55,0.00029105,2]
[422617936,1779161441000,-951.42,0.00029074,30]
[422617935,1779161441000,-246.67,0.00029074,30]
[422617934,1779161441000,-220.49,0.00029074,30]
[422617932,1779161441000,-246.55,0.00029074,30]
[422617933,1779161441000,-949.57,0.00029074,30]
[422617931,1779161441000,-220.33,0.00029074,30]
[422617937,1779161441000,-152.25,0.00029093,7]
[422617938,1779161441000,-152.32,0.00029093,7]
[422617939,1779161441000,-1268.88,0.000291,7]
[422617940,1779161441000,-220.33,0.00029105,2]
[422617942,1779161441000,-949.57,0.00029105,2]
[422617943,1779161441000,-220.49,0.00029105,2]
[422617916,1779161441000,-152.32,0.00029001,30]
[422617915,1779161441000,-152.25,0.00029001,30]
[422617930,1779161441000,-152.32,0.00029047,2]
[422617913,1779161441000,-246.67,0.00028979,30]
[422617911,1779161441000,-949.57,0.00028979,30]
[422617895,1779161441000,-246.67,0.00028915,2]
[422617889,1779161441000,-152.25,0.00028908,2]
[422617887,1779161441000,-951.42,0.00028883,30]
[422617893,1779161441000,-949.57,0.00028915,2]
[422617891,1779161441000,-220.33,0.00028915,2]
[422617890,1779161441000,-152.32,0.00028908,2]
[422617894,1779161441000,-220.49,0.00028915,2]
[422617896,1779161441000,-951.42,0.00028915,2]
[422617898,1779161441000,-156.7,0.00028926,13]
[422617899,1779161441000,-156.7,0.00028926,13]
[422617897,1779161441000,-156.7,0.00028926,13]
[422617900,1779161441000,-156.7,0.00028926,13]
[422617892,1779161441000,-246.55,0.00028915,2]
[422617901,1779161441000,-220.33,0.00028947,7]
[422617912,1779161441000,-220.49,0.00028979,30]
[422617914,1779161441000,-951.42,0.00028979,30]
[422617910,1779161441000,-246.55,0.00028979,30]
[422617909,1779161441000,-220.33,0.00028979,30]
[422617908,1779161441000,-152.32,0.00028954,7]
[422617906,1779161441000,-951.42,0.00028947,7]
[422617917,1779161441000,-220.33,0.0002901,2]
[422617904,1779161441000,-220.49,0.00028947,7]
[422617902,1779161441000,-246.55,0.00028947,7]
[422617907,1779161441000,-152.25,0.00028954,7]
[422617903,1779161441000,-949.57,0.00028947,7]
[422617905,1779161441000,-246.67,0.00028947,7]
[422617987,1779161442000,-150.0,0.00029534,2]
[422617981,1779161442000,-156.7,0.00029474,13]
[422617985,1779161442000,-1021.25852328,0.00029527,5]
[422617986,1779161442000,-1174.82211957,0.00029527,5]
[422617982,1779161442000,-156.7,0.00029474,13]
[422617983,1779161442000,-156.7,0.00029474,13]
[422617980,1779161442000,-156.7,0.00029474,13]
[422617988,1779161442000,-1224.0,0.00029578,2]
[422617977,1779161442000,-951.58,0.00029232,7]
[422617978,1779161442000,-500.0,0.00029252,4]
[422617979,1779161442000,-151.88205614,0.0002931,2]
[422617974,1779161442000,-220.68,0.00029232,7]
[422617984,1779161442000,-980.88931176,0.00029527,5]
[422617989,1779161442000,-1354.0,0.00029578,2]
[422618001,1779161442000,-150.0,0.0002996,2]
[422617991,1779161442000,-259.53,0.000296,7]
[422618000,1779161442000,-150.0,0.0002996,2]
[422617998,1779161442000,-150.0,0.0002996,2]
[422617996,1779161442000,-6158.61408429,0.000299,2]
[422617990,1779161442000,-188.73,0.000296,7]
[422617997,1779161442000,-500.0,0.00029956,5]
[422617995,1779161442000,-5962.91,0.000297,14]
[422617999,1779161442000,-150.0,0.0002996,2]
[422617994,1779161442000,-10000.0,0.00029695,2]
[422617993,1779161442000,-574730.0881335,0.00029651,2]
[422618002,1779161442000,-150.0,0.0002996,2]
[422618015,1779161442000,-200.0,0.0003,2]
[422617973,1779161442000,-949.63,0.00029232,7]
[422617992,1779161442000,-3609.5792164,0.00029651,2]
[422617975,1779161442000,-152.4,0.00029232,7]
[422617950,1779161442000,-246.67,0.00029137,7]
[422617976,1779161442000,-246.82,0.00029232,7]
[422617952,1779161442000,-152.25,0.0002914,30]
[422617951,1779161442000,-951.42,0.00029137,7]
[422618012,1779161442000,-650.0,0.0003,2]
[422617944,1779161442000,-246.67,0.00029105,2]
[422617953,1779161442000,-152.32,0.0002914,30]
[422617945,1779161442000,-951.42,0.00029105,2]
[422617946,1779161442000,-220.33,0.00029137,7]
[422617949,1779161442000,-220.49,0.00029137,7]
[422617948,1779161442000,-949.57,0.00029137,7]
[422617947,1779161442000,-246.55,0.00029137,7]
[422617955,1779161442000,-246.55,0.00029169,30]
[422617963,1779161442000,-246.55,0.00029201,2]
[422617965,1779161442000,-220.49,0.00029201,2]
[422617971,1779161442000,-152.32,0.00029232,7]
[422617954,1779161442000,-220.33,0.00029169,30]
[422617957,1779161442000,-220.49,0.00029169,30]
[422617956,1779161442000,-949.57,0.00029169,30]
[422617961,1779161442000,-152.32,0.00029186,2]
[422617960,1779161442000,-152.25,0.00029186,2]
[422617958,1779161442000,-246.67,0.00029169,30]
[422617959,1779161442000,-951.42,0.00029169,30]
[422617962,1779161442000,-220.33,0.00029201,2]
[422617967,1779161442000,-951.42,0.00029201,2]
[422617969,1779161442000,-271.49268601,0.00029209,7]
[422617966,1779161442000,-246.67,0.00029201,2]
[422617970,1779161442000,-220.43,0.00029232,7]
[422617968,1779161442000,-159.19555147,0.00029209,7]
[422617972,1779161442000,-246.63,0.00029232,7]
[422617964,1779161442000,-949.57,0.00029201,2]
[422618013,1779161442000,-312647.9317676,0.0003,7]
[422618075,1779161442000,-154.0,0.00030165,30]
[422618018,1779161442000,-200.0,0.0003,2]
[422618044,1779161442000,-1092.96,0.0003013,2]
[422618050,1779161442000,-261.73,0.00030136,30]
[422618060,1779161442000,-1500.0,0.00030137,15]
[422618057,1779161442000,-255.0,0.00030137,120]
[422618049,1779161442000,-261.74,0.00030136,30]
[422618058,1779161442000,-157.0,0.00030137,120]
[422618059,1779161442000,-1500.0,0.00030137,15]
[422618061,1779161442000,-1500.0,0.00030137,15]
[422618056,1779161442000,-282.07,0.00030137,2]
[422618053,1779161442000,-207.65,0.00030137,2]
[422618051,1779161442000,-498.22,0.00030137,2]
[422618062,1779161442000,-1500.0,0.00030137,15]
[422618055,1779161442000,-200.0,0.00030137,2]
[422618043,1779161442000,-167.72,0.0003013,2]
[422618063,1779161442000,-1500.0,0.00030137,15]
[422618073,1779161442000,-162.0,0.00030165,30]
[422618077,1779161442000,-2985.93,0.000302,2]
[422618074,1779161442000,-165.0,0.00030165,30]
[422618066,1779161442000,-1500.0,0.00030137,15]
[422618078,1779161442000,-402.14,0.000302,2]
[422618076,1779161442000,-338.75437956,0.00030179,7]
[422618068,1779161442000,-1500.0,0.00030137,15]
[422618072,1779161442000,-157.0,0.0003015,30]
[422618079,1779161442000,-288.0,0.00030204,30]
[422618071,1779161442000,-1737.625557,0.00030137,15]
[422618014,1779161442000,-312647.9317676,0.0003,7]
[422618069,1779161442000,-1500.0,0.00030137,15]
[422618080,1779161442000,-156.0,0.00030204,30]
[422618065,1779161442000,-1500.0,0.00030137,15]
[422618039,1779161442000,-150.0,0.00030124,30]
[422618070,1779161442000,-1500.0,0.00030137,15]
[422618041,1779161442000,-161.0,0.00030124,30]
[422618040,1779161442000,-216.0,0.00030124,30]
[422618007,1779161442000,-150.0,0.0002996,2]
[422618009,1779161442000,-264.0,0.0002996,2]
[422618004,1779161442000,-150.0,0.0002996,2]
[422618016,1779161442000,-200.0,0.0003,10]
[422618006,1779161442000,-150.0,0.0002996,2]
[422618017,1779161442000,-200.0,0.0003,2]
[422618019,1779161442000,-200.0,0.0003,2]
[422618030,1779161442000,-227.813015,0.0003,7]
[422618020,1779161442000,-172.0,0.0003,14]
[422618026,1779161442000,-151.0,0.0003,7]
[422618021,1779161442000,-200.0,0.0003,2]
[422618022,1779161442000,-201.101492,0.0003,7]
[422618023,1779161442000,-201.101492,0.0003,7]
[422618011,1779161442000,-721.32467522,0.0002997,2]
[422618024,1779161442000,-201.101492,0.0003,7]
[422618025,1779161442000,-201.101492,0.0003,7]
[422618042,1779161442000,-167.72,0.0003013,2]
[422618038,1779161442000,-300.0,0.000301,10]
[422618047,1779161442000,-167.72,0.00030132,2]
[422618048,1779161442000,-167.72,0.00030133,2]
[422618045,1779161442000,-1092.96,0.0003013,2]
[422618037,1779161442000,-626.0,0.000301,7]
[422618046,1779161442000,-167.72,0.00030131,2]
[422618035,1779161442000,-156.7,0.00030022,13]
[422618032,1779161442000,-156.7,0.00030022,13]
[422618031,1779161442000,-151.0,0.0003,7]
[422618033,1779161442000,-156.7,0.00030022,13]
[422618028,1779161442000,-154.016176,0.0003,7]
[422618034,1779161442000,-156.7,0.00030022,13]
[422618132,1779161443000,-156.7,0.00031392,13]
[422618131,1779161443000,-156.7,0.00031392,13]
[422618121,1779161443000,-288.0,0.00031204,30]
[422618118,1779161443000,-314.308421,0.000312,7]
[422618117,1779161443000,-311.034375,0.000312,7]
[422618116,1779161443000,-500.0,0.00031199,2]
[422618108,1779161443000,-259.53,0.000311,7]
[422618115,1779161443000,-5811.57,0.00031165,7]
[422618120,1779161443000,-5962.91,0.000312,14]
[422618112,1779161443000,-162.0,0.00031165,30]
[422618119,1779161443000,-311.034375,0.000312,7]
[422618113,1779161443000,-165.0,0.00031165,30]
[422618125,1779161443000,-536.0,0.00031204,30]
[422618126,1779161443000,-1000.0,0.00031365,6]
[422618123,1779161443000,-151.0,0.00031204,30]
[422618129,1779161443000,-156.7,0.00031392,13]
[422618127,1779161443000,-500.0,0.00031366,6]
[422618128,1779161443000,-152.0,0.00031384,3]
[422618124,1779161443000,-159.0,0.00031204,30]
[422618130,1779161443000,-156.7,0.00031392,13]
[422618133,1779161443000,-357.3022173,0.00031476,2]
[422618135,1779161443000,-814.47805803,0.00031476,7]
[422618134,1779161443000,-477.58665441,0.00031476,7]
[422618136,1779161443000,-414.90371632,0.00031476,7]
[422618110,1779161443000,-161.0,0.00031124,30]
[422618137,1779161443000,-1000.0,0.000315,7]
[422618122,1779161443000,-156.0,0.00031204,30]
[422618114,1779161443000,-154.0,0.00031165,30]
[422618095,1779161443000,-500.0,0.00030582,2]
[422618109,1779161443000,-1268.88,0.000311,7]
[422618144,1779161443000,-171.6544133,0.00031583,7]
[422618087,1779161443000,-1587.0,0.0003029,3]
[422618088,1779161443000,-401.2558515,0.00030561,2]
[422618089,1779161443000,-178.65110865,0.00030569,2]
[422618092,1779161443000,-207.45185816,0.00030569,7]
[422618082,1779161443000,-159.0,0.00030204,30]
[422618090,1779161443000,-318.39110294,0.00030569,7]
[422618091,1779161443000,-542.98537202,0.00030569,7]
[422618081,1779161443000,-151.0,0.00030204,30]
[422618084,1779161443000,-150.0,0.00030205,2]
[422618086,1779161443000,-445.66982121,0.00030259,2]
[422618083,1779161443000,-536.0,0.00030204,30]
[422618085,1779161443000,-721.4,0.00030239,2]
[422618093,1779161443000,-500.0,0.00030582,2]
[422618094,1779161443000,-500.0,0.00030582,2]
[422618097,1779161443000,-500.0,0.00030582,2]
[422618096,1779161443000,-500.0,0.00030582,2]
[422618099,1779161443000,-500.0,0.00030661,5]
[422618098,1779161443000,-497.0,0.00030582,2]
[422618100,1779161443000,-162.73122119,0.00030674,7]
[422618105,1779161443000,-2314.0,0.0003104,3]
[422618104,1779161443000,-150.0,0.00031011,2]
[422618101,1779161443000,-303.76411229,0.00030674,2]
[422618102,1779161443000,-192.7817306,0.00030674,7]
[422618106,1779161443000,-200.0,0.00031096,2]
[422618103,1779161443000,-2314.0,0.0003072,3]
[422618107,1779161443000,-188.73,0.000311,7]
[422618111,1779161443000,-157.0,0.0003115,30]
[422618139,1779161443000,-213.75557111,0.00031583,7]
[422618146,1779161443000,-385.56346119,0.00031583,7]
[422618143,1779161443000,-325.46244238,0.00031583,7]
[422618172,1779161443000,-334.63194657,0.0003211,2]
[422618176,1779161443000,-166.94104197,0.00032165,30]
[422618175,1779161443000,-162.0,0.00032165,30]
[422618177,1779161443000,-154.0,0.00032165,30]
[422618184,1779161443000,-563.40186268,0.00032189,2]
[422618181,1779161443000,-427.51114223,0.00032189,7]
[422618180,1779161443000,-428.55232116,0.00032189,7]
[422618178,1779161443000,-165.0169709,0.00032189,7]
[422618182,1779161443000,-168.56967375,0.00032189,2]
[422618185,1779161443000,-164.75063604,0.00032189,2]
[422618183,1779161443000,-549.70298151,0.00032189,7]
[422618179,1779161443000,-235.08822507,0.00032189,7]
[422618170,1779161443000,-343.30882661,0.0003208,7]
[422618189,1779161443000,-488.19366357,0.00032189,7]
[422618190,1779161443000,-229.03495195,0.00032189,7]
[422618192,1779161443000,-164.79520825,0.00032189,7]
[422618191,1779161443000,-607.52822458,0.00032189,2]
[422618195,1779161443000,-408.26738126,0.00032189,7]
[422618193,1779161443000,-400.16544722,0.00032189,7]
[422618194,1779161443000,-420.18080447,0.00032189,7]
[422618197,1779161443000,-578.34519179,0.00032189,7]
[422618196,1779161443000,-175.01328827,0.00032189,7]
[422618199,1779161443000,-151.0,0.000322,7]
[422618200,1779161443000,-221.758982,0.000322,7]
[422618201,1779161443000,-221.758982,0.000322,7]
[422618198,1779161443000,-45787.83,0.000322,2]
[422618188,1779161443000,-496.67565681,0.00032189,2]
[422618168,1779161443000,-222.57037923,0.0003208,7]
[422618202,1779161443000,-221.758982,0.000322,7]
[422618165,1779161443000,-500.0,0.00032071,7]
[422618140,1779161443000,-274.85149076,0.00031583,7]
[422618138,1779161443000,-167.31597329,0.00031505,2]
[422618142,1779161443000,-248.3378284,0.00031583,2]
[422618141,1779161443000,-281.70093134,0.00031583,2]
[422618145,1779161443000,-455.64616843,0.00031583,2]
[422618147,1779161443000,-173.0,0.00031644,14]
[422618149,1779161443000,-150.0,0.00031716,2]
[422618169,1779161443000,-1085.97074405,0.0003208,7]
[422618150,1779161443000,-73348.18799782,0.00031926,7]
[422618155,1779161443000,-151.0,0.00032,7]
[422618148,1779161443000,-163.0,0.0003168,3]
[422618161,1779161443000,-151.0,0.00032,7]
[422618160,1779161443000,-151.0,0.00032,7]
[422618151,1779161443000,-700.0,0.00032,2]
[422618158,1779161443000,-151.0,0.00032,7]
[422618152,1779161443000,-167.42101506,0.00032,120]
[422618167,1779161443000,-636.78220589,0.0003208,7]
[422618174,1779161443000,-157.0,0.0003215,30]
[422618173,1779161443000,-162.0,0.00032124,30]
[422618164,1779161443000,-200.0,0.00032055,2]
[422618166,1779161443000,-535.95332595,0.0003208,2]
[422618171,1779161443000,-622.35557448,0.0003208,7]
[422618163,1779161443000,-151.0,0.00032,7]
[422618157,1779161443000,-151.0,0.00032,7]
[422618153,1779161443000,-192.30854507,0.00032,120]
[422618159,1779161443000,-151.0,0.00032,7]
[422618154,1779161443000,-100000.0,0.00032,30]
[422618162,1779161443000,-151.0,0.00032,7]
[422618248,1779161444000,-1282.501218,0.00032877,7]
[422618242,1779161444000,-684.73480028,0.00032876,30]
[422618240,1779161444000,-406.11,0.0003287,14]
[422618241,1779161444000,-1000.0,0.00032876,30]
[422618238,1779161444000,-759.41028072,0.00032795,2]
[422618236,1779161444000,-500.0,0.00032776,8]
[422618237,1779161444000,-401.2558515,0.00032777,2]